Cogmind - Beta 15 @@@ ROGUE MODE // 2025.09.25 @ 05:58:37 Player: Kotyk77 Result: Destroyed by S-27 Virus with Autogun Performance ------------- Evolutions (6) 3000 Regions Visited (12) 2400 Robots Destroyed (67) 335 Value Destroyed (2240) 2240 Prototype IDs (39) 780 Alien Tech Used (0) 0 Bonus (705) 705 TOTAL SCORE: 9460 Bonus ------- Follower Combat Kills 105 Aligned with FarCom 300 Met Data Miner 300 Cogmind --------- Core Integrity 0/1150 Matter 153/300 Energy 97/100 System Corruption 5% Temperature Cool (0) Movement Core (50) Location -4/Factory Parts ------- > --- POWER (2) -------- (None) > --- PROPULSION (5) --- (None) > --- UTILITY (10) ----- Improved Signal Interpreter Improved Signal Interpreter Advanced Targeting Computer > --- WEAPON (2) ------- Power Sword > --- INVENTORY (5) ---- Antigrav System Antigrav System Energy Well (350) Power Sword Power Sword Peak State ------------ > --- POWER ------------ Light Nuclear Core > --- PROPULSION ------- Antigrav System Antigrav System Gyrokinetic Inverter Nuclear Pulse Array > --- UTILITY ---------- Advanced Cooling System Energy Well Improved Signal Interpreter Improved Signal Interpreter Advanced Targeting Computer Improved Medium Armor Plating Hacking Suite Improved Hacking Suite Improved System Shield > --- WEAPON ----------- Hardcell Cannon Heavy Mace > --- INVENTORY -------- Nuclear Pulse Array Long-range Proton Cannon [Rating: 81] Favorites ----------- Power Ion Engine Engine Ion Engine Power Core Light Fission Core Propulsion Aluminum Leg Treads Medium Treads Leg Aluminum Leg Wheel Armored Huge Wheel Hover Unit Antigrav System Flight Unit Nuclear Pulse Array Utility Advanced Targeting Computer Device Weight Redist. System Storage Large Storage Unit Processor Advanced Targeting Computer Hackware Hacking Suite Protection Hardened Light Armor Plating Weapon Particle Gun Energy Gun Particle Gun Energy Cannon Ion Cannon Ballistic Gun Enhanced Autogun Ballistic Cannon Hardcell Cannon Launcher Heavy Rocket Launcher Special Weapon Welding Torch Impact Weapon Great Maul Slashing Weapon Axe Build | -11 -10 -10 -10 -9 -8 -7 -7 -7 -6 -6 -5 -4 ------- Run | Yrd Mat Min Exi Min Mat Fac Low Dat Pro Fac Fac Fac Slots Evolved 12 | . . . . . 4 2 . . . 2 2 2 Power 1 | . . . . . . . . . . 1 . . Propulsion 3 | . . . . . 2 1 . . . . . . Utility 8 | . . . . . 2 1 . . . 1 2 2 Weapon . | . . . . . . . . . . . . . Parts Attached 111 | 7 8 2 . . 18 3 2 . 5 29 24 13 Power 16 | 1 . 1 . . 2 . . . 1 6 2 3 Engine 7 | 1 . 1 . . 2 . . . 1 2 . . Core 9 | . . . . . . . . . . 4 2 3 Reactor . | . . . . . . . . . . . . . Propulsion 27 | 2 2 . . . 3 1 1 . . 5 8 5 Treads 1 | . . . . . . . . . . . 1 . Leg 12 | 2 2 . . . 3 1 1 . . 3 . . Wheel 1 | . . . . . . . . . . 1 . . Hover 5 | . . . . . . . . . . 1 4 . Flight 8 | . . . . . . . . . . . 3 5 Utility 35 | 2 4 . . . 5 2 . . 2 9 9 2 Device 10 | 1 . . . . 1 . . . . 4 3 1 Storage 8 | 1 1 . . . 2 . . . . 2 1 1 Processor 7 | . 1 . . . 1 2 . . . 2 1 . Hackware 4 | . . . . . . . . . . 1 3 . Protection 6 | . 2 . . . 1 . . . 2 . 1 . Artifact . | . . . . . . . . . . . . . Weapon 33 | 2 2 1 . . 8 . 1 . 2 9 5 3 Energy Gun 11 | 2 2 1 . . 2 . . . . 3 1 . Energy Cannon 2 | . . . . . 1 . . . . . 1 . Ballistic Gun 8 | . . . . . 2 . . . 1 4 . 1 Ballistic Cannon 2 | . . . . . 1 . . . . . . 1 Launcher 3 | . . . . . . . . . 1 1 1 . Special Weapon 1 | . . . . . . . . . . . 1 . Impact Weapon 4 | . . . . . 1 . 1 . . 1 1 . Slashing Weapon 2 | . . . . . 1 . . . . . . 1 Piercing Weapon . | . . . . . . . . . . . . . Special Melee Weapon . | . . . . . . . . . . . . . Unidentified Prototypes 4 | . . . . . 3 . . . . 1 . . Corrupted Parts 2 | . . . . . . . . . . 2 . . System Corruption 15 | . . . . . . . . . . 15 . . Parts Lost 55 | . . . . . . . . . 12 11 15 17 Power 10 | . . . . . . . . . 1 5 2 2 Propulsion 18 | . . . . . . . . . 6 2 5 5 Utility 14 | . . . . . . . . . 3 . 5 6 Weapon 13 | . . . . . . . . . 2 4 3 4 Highest Loss Streak 10 | . . . . . . . . . 10 4 8 10 To Critical Strikes . | . . . . . . . . . . . . . Average Backups 12 | 2 12 14 14 15 14 18 19 19 13 9 7 3 Power 1 | . 1 1 1 1 1 2 3 3 2 . . . Propulsion 2 | 1 5 6 6 6 5 2 2 2 1 . 1 2 Utility 4 | . 5 4 4 5 2 7 9 9 6 5 4 . Weapon 3 | . 1 2 3 3 4 5 5 5 4 3 . . Tool/Special . | . . . . . . . . . . . . . Unused Backups 34 | . 2 . . . 7 3 2 . 13 4 3 . Power 6 | . . . . . 3 . . . 3 . . . Propulsion 4 | . . . . . 2 1 1 . . . . . Utility 18 | . 2 . . . 1 . . . 8 4 3 . Weapon 6 | . . . . . 1 2 1 . 2 . . . Tool/Special . | . . . . . . . . . . . . . Average Slot Usage (%) 84 | . 100 100 100 100 99 99 100 100 69 61 75 61 Engine 6 | . 14 14 14 14 9 7 7 7 4 . . . Core 1 | . . . . . . . . . . 5 3 2 Leg 19 | . 28 28 28 28 35 38 38 38 24 1 1 . Hover 1 | . . . . . . . . . . 1 5 6 Flight 1 | . . . . . . . . . . . 7 7 Device 3 | . . . . . 2 7 7 7 4 6 3 2 Storage 8 | . 14 14 14 14 9 7 7 7 4 9 3 4 Processor 12 | . 10 . . . 8 14 15 15 15 20 21 15 Hackware 2 | . . . . . . . . . . 1 12 11 Protection 6 | . 3 14 14 14 15 7 7 7 4 . 1 3 Energy Gun 9 | . 28 28 28 28 7 . . . . 2 4 . Ballistic Gun 2 | . . . . . 3 7 7 7 3 3 2 1 Impact Weapon 2 | . . . . . 2 7 7 7 4 2 1 1 Peak Build Rating 81 | 7 10 10 11 11 30 39 44 44 46 57 75 81 Average Rating 33 | 5 8 10 10 11 27 35 41 44 32 43 62 54 On Entrance 24 | . 7 10 10 11 11 30 39 44 44 10 44 61 Naked Turns . | . . . . . . . . . . . . . Heaviest Build 62 | 15 35 35 34 34 47 60 60 59 62 61 39 35 Greatest Support 77 | 20 20 20 20 20 51 69 77 77 77 36 41 25 Greatest Overweight (x) 20 | 1 2 1 1 1 1 . . . 3 20 9 6 Average Overweight (x) . | . . 1 1 1 . . . . . 1 . . Largest Inventory Capacity 20 | 8 15 15 15 15 20 20 20 20 20 15 10 5 Average Capacity 13 | 7 14 15 15 15 15 18 20 20 14 10 8 5 Most Carried 20 | 5 15 15 15 15 15 20 20 20 20 13 10 5 Average Carried 12 | 2 12 14 14 14 14 18 19 20 14 9 8 4 Final Capacity 20 | 8 15 15 15 15 15 20 20 20 5 5 5 5 Final Carried 20 | 5 14 14 15 15 15 20 20 20 5 5 5 5 Class Distribution -------------------- 54% | Mutant 29% | Scavenger-Mutant 9% | Hacker-Mutant Dominant Class ---------------- Mutant | -10/Materials Scavenger-Mutant | -10/Mines Scavenger-Mutant | -10/Exiles Scavenger-Mutant | -9/Mines Scavenger-Mutant | -8/Materials Mutant | -7/Factory Mutant | -7/Lower Caves Mutant | -7/Data Miner Mutant | -6/Proximity Caves Mutant | -6/Factory Hacker-Mutant | -5/Factory Hacker-Mutant | -4/Factory Resources | -11 -10 -10 -10 -9 -8 -7 -7 -7 -6 -6 -5 -4 ----------- Run | Yrd Mat Min Exi Min Mat Fac Low Dat Pro Fac Fac Fac Matter Collected 1818 | 270 226 20 . . 234 91 23 . 111 283 442 118 Remotely 64 | 64 . . . . . . . . . . . . Salvage Created 2579 | 79 418 81 . . 553 45 . . 64 394 800 145 Parts 113 | 3 14 5 . . 31 2 . . 2 10 35 11 Haulers Intercepted 3 | . . . . . 2 . . . . . 1 . Recyclers Shooed 8 | . . . . . 2 . . . . 1 5 . Parts Field Recycled 4 | . . . . . . . . . . 4 . . Retrieved Matter 178 | . . . . . . . . . . 178 . . Parts Self-Destructed 5 | . . . . . . . . . 5 . . . Prevented . | . . . . . . . . . . . . . Kills | -11 -10 -10 -10 -9 -8 -7 -7 -7 -6 -6 -5 -4 ------- Run | Yrd Mat Min Exi Min Mat Fac Low Dat Pro Fac Fac Fac Combat Hostiles Destroyed 44 | . 7 2 . . 5 1 . . 6 7 10 6 Melee 3 | . . . . . 1 . . . . . 1 1 Guns 24 | . 6 2 . . 4 1 . . 1 4 6 . Cannons 5 | . . . . . . . . . . . . 5 AOE 9 | . . . . . . . . . 5 1 3 . Classes Destroyed 13 | 1 2 . . . 4 1 . . 2 1 2 . Worker 6 | . . . . . . . . . . 1 4 1 Builder 3 | . . . . . . . . . . . 3 . Hauler 3 | . . . . . 2 . . . . . 1 . Recycler 7 | 1 1 . . . 3 . . . . . 2 . Operator 1 | . . . . . 1 . . . . . . . Watcher 3 | . 1 . . . 1 . . . . 1 . . Swarmer 14 | . . . . . . . . . 3 2 4 5 Grunt 12 | . 7 2 . . . . . . . . 3 . Brawler 1 | . . . . . . . . . . . 1 . Duelist 1 | . . . . . . . . . 1 . . . Sentry 2 | . . . . . 2 . . . . . . . Hunter 8 | . . . . . 3 . . . 2 3 . . Programmer 6 | . . . . . . 1 . . . 2 2 1 Best Kill Streak 10 | 1 3 2 . . 3 1 . . 5 2 10 6 Combat Bots Only 5 | . 3 2 . . 2 1 . . 5 2 4 5 Max Kills in Single Turn 5 | 1 1 1 . . 1 1 . . 1 1 5 1 Gunslinging . | . . . . . . . . . . . . . Exploded 2 | . . . . . . . . . 1 1 2 . Melee 1 | . . . . . 1 . . . . . 1 1 Uniques/NPCs Destroyed . | . . . . . . . . . . . . . Combat | -11 -10 -10 -10 -9 -8 -7 -7 -7 -6 -6 -5 -4 -------- Run | Yrd Mat Min Exi Min Mat Fac Low Dat Pro Fac Fac Fac Hostile Shots Fired 694 | . 41 7 . . 23 8 . . 183 128 151 153 Missed 216 | . 16 3 . . 6 3 . . 58 25 46 59 Hits 478 | . 25 4 . . 17 5 . . 125 103 105 94 Melee 7 | . . . . . . . . . 7 . . . Projectile 471 | . 25 4 . . 17 5 . . 118 103 105 94 AOE 4 | . . . . . . . . . . . . 4 Critical Strikes 12 | . . . . . . . . . 2 3 3 4 Damage Taken 9367 | . 324 60 . . 264 104 . . 2162 1694 2451 2308 Core 2962 | . 103 . . . 20 15 . . 664 457 537 1166 Absorbed by Shields . | . . . . . . . . . . . . . Core Remaining (%) 58 | 100 . . . 58 96 . . . 3 46 46 . Volleys Fired 239 | 4 29 6 . . 34 8 . . 30 51 56 21 Largest 2 | 2 2 2 . . 2 1 . . 1 2 2 2 Hottest 140 | 100 115 115 . . 140 25 . . 30 98 123 81 Shots Fired 319 | 8 58 10 . . 52 8 . . 30 52 74 27 Gun 278 | 8 58 10 . . 50 8 . . 16 51 71 6 Cannon 23 | . . . . . 2 . . . . . . 21 Launcher 18 | . . . . . . . . . 14 1 3 . Special . | . . . . . . . . . . . . . Kinetic 121 | . . . . . 11 8 . . 16 43 19 24 Thermal 177 | 8 58 10 . . 41 . . . . 8 52 . Explosive 18 | . . . . . . . . . 14 1 3 . Electromagnetic 3 | . . . . . . . . . . . . 3 Robot Hit Streak 11 | 3 8 4 . . 7 2 . . 3 6 11 8 Robot Miss Streak 7 | 2 2 1 . . 4 2 . . 3 7 4 3 Penetration Max . | . . . . . . . . . . . . . Secondary Targets 1 | . . . . . . . . . . . 1 . Max Gunslinging Chain 1 | . . . . . . . . . . . 1 . Shots Hit Robots 201 | 4 36 8 . . 36 5 . . 10 27 53 22 Core Hits 118 | 2 15 3 . . 13 2 . . 21 22 31 9 Critical Kills 1 | . . . . . . . . . . . 1 . Critical Parts Destroyed 3 | . . . . . 1 . . . . . 2 . Critical Strikes 14 | 1 4 . . . 1 . . . . 1 4 3 Burn 7 | 1 4 . . . . . . . . 1 1 . Destroy 3 | . . . . . . . . . . . 3 . Blast 3 | . . . . . . . . . . . . 3 Smash 1 | . . . . . 1 . . . . . . . Melee Attacks 61 | . . . . . 16 4 . . . 26 7 8 Impact 54 | . . . . . 12 4 . . . 26 7 5 Slashing 7 | . . . . . 4 . . . . . . 3 Piercing . | . . . . . . . . . . . . . Sneak Attacks 6 | . . . . . 1 1 . . . 2 1 1 Combat Hostiles . | . . . . . . . . . . . . . Follow-up Attacks . | . . . . . . . . . . . . . Damage Inflicted 6849 | 51 503 127 . 9 841 158 . . 779 1129 2326 926 Guns 3205 | 51 502 115 . . 583 92 . . 183 325 1279 75 Cannons 560 | . . . . . . . . . . . . 560 Explosions 1772 | . . . . . . . . . 596 248 825 103 Melee 1271 | . . . . . 257 66 . . . 538 222 188 Ramming 41 | . 1 12 . 9 1 . . . . 18 . . Kinetic 1426 | . . . . . 140 92 . . 183 248 219 544 Thermal 2248 | 51 502 115 . . 443 . . . . 77 1060 . Explosive 1535 | . . . . . . . . . 596 11 825 103 Electromagnetic 328 | . . . . . . . . . . 237 . 91 Impact 1238 | . . . . . 257 66 . . . 538 222 155 Slashing 33 | . . . . . . . . . . . . 33 Piercing . | . . . . . . . . . . . . . Highest Corruption 22 | . . . . . . . . . . 22 20 5 Average Corruption 14 | . . . . . . . . . . 14 15 2 Corruption Purged . | . . . . . . . . . . . . . Corruption Blocked . | . . . . . . . . . . . . . Effects 69 | . . . . . . . . . . 42 24 3 Message Errors 13 | . . . . . . . . . . 7 5 1 Matter Fused 12 | . . . . . . . . . . 8 3 1 Heat Flow Errors 6 | . . . . . . . . . . 3 3 . Energy Discharges 12 | . . . . . . . . . . 8 4 . Parts Rejected 1 | . . . . . . . . . . 1 . . Parts Fused 1 | . . . . . . . . . . 1 . . Data Loss (minor) 13 | . . . . . . . . . . 8 5 . Data Loss (major) 5 | . . . . . . . . . . 3 2 . Misfires 1 | . . . . . . . . . . 1 . . Alerts 1 | . . . . . . . . . . . 1 . Weapon Failures 4 | . . . . . . . . . . 2 1 1 Overload Shots . | . . . . . . . . . . . . . Overflow Damage 536 | . . . . . 133 26 . . 3 176 88 110 Projectiles 19 | . . . . . . . . . . . . 19 Explosions 54 | . . . . . . . . . 3 . 34 17 Melee 463 | . . . . . 133 26 . . . 176 54 74 Knockbacks 7 | . . . . . 1 1 . . . 3 1 1 Impact 6 | . . . . . 1 1 . . . 3 1 . Kinetic 1 | . . . . . . . . . . . . 1 Secondary . | . . . . . . . . . . . . . Self-Inflicted Damage 434 | . . . . . . . . . 30 89 127 188 Shots 9 | . . . . . . . . . 1 4 2 2 Rammed 3 | . . . . . . . . . . 3 . . Targets Rammed 7 | . 1 1 . 1 1 . . . . 3 . . Kicked 4 | . 1 1 . 1 1 . . . . . . . Crushed . | . . . . . . . . . . . . . Highest Temperature 428 | 156 392 380 . . 428 . . . 17 421 312 36 Average Temperature 117 | 79 136 195 . . 115 . . . 11 105 105 15 Received Heat Transfer 987 | . 174 36 . . 18 . . . 414 . 144 201 Effects 9 | . 4 2 . . 3 . . . . . . . Shutdowns 2 | . 1 . . . 1 . . . . . . . Energy Bleed 2 | . 1 . . . 1 . . . . . . . Interference 2 | . . 2 . . . . . . . . . . Short Circuit 1 | . 1 . . . . . . . . . . . Damage (minor) 2 | . 1 . . . 1 . . . . . . . Siege Activations . | . . . . . . . . . . . . . Martial Activations . | . . . . . . . . . . . . . Shielding Activations . | . . . . . . . . . . . . . Robots Disrupted . | . . . . . . . . . . . . . Combat Hostiles . | . . . . . . . . . . . . . Robots Corrupted 4 | . . . . . 1 . . . . 3 . . Combat Hostiles 2 | . . . . . . . . . . 2 . . Parts Fried 7 | . . . . . . . . . . 5 1 1 Impact Corruptions 13 | . . . . . 3 1 . . . 7 1 1 Robots Melted 1 | . 1 . . . . . . . . . . . Combat Hostiles 1 | . 1 . . . . . . . . . . . Parts Melted 14 | 2 2 . . . 2 . . . . 3 5 . Heat Transferred 5133 | 222 1702 296 . . 864 . . . . 250 1799 . Parts Sabotaged . | . . . . . . . . . . . . . Parts Stolen . | . . . . . . . . . . . . . Parts Stripped . | . . . . . . . . . . . . . Power Chain Reactions . | . . . . . . . . . . . . . Alert | -11 -10 -10 -10 -9 -8 -7 -7 -7 -6 -6 -5 -4 ------- Run | Yrd Mat Min Exi Min Mat Fac Low Dat Pro Fac Fac Fac Maximum Alert Level . | . . . . . . . . . . . . . Low Security (%) 100 | 100 100 100 . 100 100 100 . . . 100 100 100 Level 1 . | . . . . . . . . . . . . . Level 2 . | . . . . . . . . . . . . . Level 3 . | . . . . . . . . . . . . . Level 4 . | . . . . . . . . . . . . . Level 5 . | . . . . . . . . . . . . . High Security . | . . . . . . . . . . . . . Max Security . | . . . . . . . . . . . . . Peak Influence 133 | 5 67 50 . . 55 24 . . . 114 133 86 Initial 33 | . . 6 . . . 2 . . . 33 16 22 Average 17 | . 14 3 . . 8 1 . . . 28 33 30 Influence Increases 1915 | 5 217 50 . . 258 27 . . 316 324 369 349 Destroy 0b10 Robot/C 828 | . 140 40 . . 112 16 . . 112 120 168 120 Destroy 0b10 Robot/NC 98 | 5 10 . . . 28 . . . . 9 41 5 Destroy Leader 206 | . 32 10 . . 54 8 . . 16 38 28 20 Allied During Kill 19 | . . . . . 11 . . . 8 . . . Successful Hack 47 | . 19 . . . 5 . . . . . 23 . Disable Machine 141 | . . . . . . . . . . 84 12 45 Destroy Structure 129 | . 1 . . . 12 3 . . . 13 46 54 Partial Spotted 27 | . . . . . . . . . . . 12 15 Lose Combat Pursuer 420 | . 15 . . . 36 . . . 180 60 39 90 Influence Decreases 1850 | 5 200 67 . . 253 32 . . 262 344 356 331 Entered New Map 78 | . . 11 . . . 3 . . . 21 18 25 Time Decay 1350 | 5 200 56 . . 221 29 . . 216 262 208 153 Lost Part 370 | . . . . . . . . . 26 61 130 153 Lost Ally 52 | . . . . . 32 . . . 20 . . . Squads Dispatched 15 | . 1 . . . . 2 . . 1 4 4 3 Investigation 2 | . 1 . . . . . . . . . 1 . Extermination 7 | . . . . . . 1 . . . 3 2 1 Reinforcement 3 | . . . . . . 1 . . . 1 1 . Assault 1 | . . . . . . . . . 1 . . . Garrison 2 | . . . . . . . . . . . . 2 Intercept . | . . . . . . . . . . . . . Searches Triggered . | . . . . . . . . . . . . . Construction Impeded 1 | . . . . . . . . . . . 1 . Haulers Reinforced . | . . . . . . . . . . . . . Active Scanning Responses . | . . . . . . . . . . . . . Cargo Convoy Interrupts . | . . . . . . . . . . . . . Stealth | -11 -10 -10 -10 -9 -8 -7 -7 -7 -6 -6 -5 -4 --------- Run | Yrd Mat Min Exi Min Mat Fac Low Dat Pro Fac Fac Fac Distress Signals 9 | . . . . . 4 . . . . 1 . 4 Communications Jammed . | . . . . . . . . . . . . . Distress Signals . | . . . . . . . . . . . . . Times Spotted 106 | . 14 2 . . 15 2 . . 22 15 14 22 Peak Tracking Total 13 | . 3 2 . . 2 1 . . 6 4 5 13 Tactical Retreats 19 | . 1 . . . 3 . . . 8 2 3 2 Traps | -11 -10 -10 -10 -9 -8 -7 -7 -7 -6 -6 -5 -4 ------- Run | Yrd Mat Min Exi Min Mat Fac Low Dat Pro Fac Fac Fac Traps Triggered 7 | . 1 . . . . 1 . . . . 5 . Indirectly . | . . . . . . . . . . . . . Trap Hack Attempts . | . . . . . . . . . . . . . Triggered . | . . . . . . . . . . . . . Disarmed . | . . . . . . . . . . . . . Reprogrammed . | . . . . . . . . . . . . . Reused . | . . . . . . . . . . . . . Traps Extracted . | . . . . . . . . . . . . . Installed . | . . . . . . . . . . . . . Triggered . | . . . . . . . . . . . . . Machines | -11 -10 -10 -10 -9 -8 -7 -7 -7 -6 -6 -5 -4 ---------- Run | Yrd Mat Min Exi Min Mat Fac Low Dat Pro Fac Fac Fac Machines Disabled 11 | . . . . . . . . . . 7 1 3 Max in Single Turn 6 | . . . . . . . . . . 6 1 2 Machines Repaired . | . . . . . . . . . . . . . Machines Dismantled . | . . . . . . . . . . . . . Machines Sabotaged . | . . . . . . . . . . . . . Overloaded Fab Kills . | . . . . . . . . . . . . . Hacking | -11 -10 -10 -10 -9 -8 -7 -7 -7 -6 -6 -5 -4 --------- Run | Yrd Mat Min Exi Min Mat Fac Low Dat Pro Fac Fac Fac Machines Accessed 22 | . 4 . 2 . 6 . . 4 . 1 5 . Terminals 13 | . 4 . . . 4 . . . . 1 4 . Fabricators . | . . . . . . . . . . . . . Repair Stations . | . . . . . . . . . . . . . Recycling Units . | . . . . . . . . . . . . . Scanalyzers 3 | . . . . . 2 . . . . . 1 . Garrison Access . | . . . . . . . . . . . . . Total Hacks 92 | . 17 . 2 . 20 . . 32 . 2 19 . Successful 60 | . 6 . 2 . 10 . . 32 . 1 9 . Failed 32 | . 11 . . . 10 . . . . 1 10 . Catastrophic 4 | . 1 . . . 1 . . . . . 2 . Database Lockouts . | . . . . . . . . . . . . . Manual 38 | . 15 . 1 . 11 . . . . . 11 . Terminals 43 | . 17 . . . 10 . . . . 2 14 . Fabricators . | . . . . . . . . . . . . . Repair Stations . | . . . . . . . . . . . . . Recycling Units . | . . . . . . . . . . . . . Scanalyzers 15 | . . . . . 10 . . . . . 5 . Garrison Access . | . . . . . . . . . . . . . Terminal Hacks 45 | . 4 . 2 . 2 . . 32 . 1 4 . Record 13 | . . . 1 . . . . 11 . . 1 . Part Schematic 13 | . . . . . . . . 13 . . . . Robot Schematic 5 | . . . . . . . . 5 . . . . Robot Analysis 3 | . 2 . . . 1 . . . . . . . Prototype ID Bank 4 | . 1 . . . . . . 3 . . . . Open DSF 1 | . . . . . . . . . . 1 . . Level Access Points 1 | . . . . . . . . . . . 1 . Terminal Index 3 | . 1 . . . 1 . . . . . 1 . Locate Traps 1 | . . . . . . . . . . . 1 . Proto ID Catalog 1 | . . . 1 . . . . . . . . . Fabricator Hacks . | . . . . . . . . . . . . . Repair Station Hacks . | . . . . . . . . . . . . . Recycling Unit Hacks . | . . . . . . . . . . . . . Scanalyzer 11 | . . . . . 7 . . . . . 4 . Insert Component 5 | . . . . . 3 . . . . . 2 . Analyze 6 | . . . . . 4 . . . . . 2 . Garrison Access Hacks . | . . . . . . . . . . . . . Unauthorized Hacks 4 | . 2 . . . 1 . . . . . 1 . Terminals 4 | . 2 . . . 1 . . . . . 1 . Botnet 4 | . 2 . . . 1 . . . . . 1 . Fabricators . | . . . . . . . . . . . . . Repair Stations . | . . . . . . . . . . . . . Recycling Units . | . . . . . . . . . . . . . Scanalyzers . | . . . . . . . . . . . . . Garrison Access . | . . . . . . . . . . . . . Data Cores Recovered 1 | . . . . . 1 . . . . . . . Used . | . . . . . . . . . . . . . Hacking Detections 10 | . 3 . . . 3 . . . . . 4 . Full Trace Events 2 | . 2 . . . . . . . . . . . Feedback Events . | . . . . . . . . . . . . . Feedback Blocked . | . . . . . . . . . . . . . Robot Schematics Acquired 5 | . . . . . . . . 5 . . . . Robots Built . | . . . . . . . . . . . . . Authchips . | . . . . . . . . . . . . . Time . | . . . . . . . . . . . . . Total Robot Build Rating . | . . . . . . . . . . . . . Part Schematics Acquired 18 | . . . . . 3 . . 13 . . 2 . Parts Built . | . . . . . . . . . . . . . Authchips . | . . . . . . . . . . . . . Time . | . . . . . . . . . . . . . Total Part Build Rating . | . . . . . . . . . . . . . Parts Repaired . | . . . . . . . . . . . . . Time . | . . . . . . . . . . . . . Parts Recycled . | . . . . . . . . . . . . . Recycled Matter . | . . . . . . . . . . . . . Retrieved Matter . | . . . . . . . . . . . . . Retrieved Components . | . . . . . . . . . . . . . Parts Scanalyzed 5 | . . . . . 3 . . . . . 2 . Part Schematics Acquired 5 | . . . . . 3 . . . . . 2 . Parts Damaged . | . . . . . . . . . . . . . Bothacking | -11 -10 -10 -10 -9 -8 -7 -7 -7 -6 -6 -5 -4 ------------ Run | Yrd Mat Min Exi Min Mat Fac Low Dat Pro Fac Fac Fac Used RIF Installer . | . . . . . . . . . . . . . Robots Hacked . | . . . . . . . . . . . . . Non-combat . | . . . . . . . . . . . . . Combat . | . . . . . . . . . . . . . Robot Hacks Applied . | . . . . . . . . . . . . . Relay Couplers Released . | . . . . . . . . . . . . . Fabnet Peak Effective % . | . . . . . . . . . . . . . Robots Rewired . | . . . . . . . . . . . . . Allies Hacked . | . . . . . . . . . . . . . Hacks Repelled . | . . . . . . . . . . . . . Allies | -11 -10 -10 -10 -9 -8 -7 -7 -7 -6 -6 -5 -4 -------- Run | Yrd Mat Min Exi Min Mat Fac Low Dat Pro Fac Fac Fac Total Allies 6 | . . 3 . 2 . . . . 1 . . . Largest Group 5 | . . 3 3 5 5 . . . 1 . . . Highest-Rated Group 96 | . . 40 40 85 85 . . . 96 . . . Highest-Rated Ally 96 | . . 16 16 31 31 . . . 96 . . . Total Orders . | . . . . . . . . . . . . . Ally Attacks 30 | . . . . . 25 . . . 5 . . . Total Damage 477 | . . . . . 251 . . . 226 . . . Kills 3 | . . . . . 2 . . . 1 . . . Allies Corrupted . | . . . . . . . . . . . . . Allies Melted . | . . . . . . . . . . . . . Intel | -11 -10 -10 -10 -9 -8 -7 -7 -7 -6 -6 -5 -4 ------- Run | Yrd Mat Min Exi Min Mat Fac Low Dat Pro Fac Fac Fac Active Infowar (turns) 1419 | . 625 . . . . . . . . 421 373 . Sensors 794 | . . . . . . . . . . 421 373 . T.N.C. 625 | . 625 . . . . . . . . . . . Robot Analysis Total 3 | . 2 . . . 1 . . . . . . . Derelict Logs Recovered 2 | . . 1 . . . . . . 1 . . . Drone Launches . | . . . . . . . . . . . . . Drone Recoveries . | . . . . . . . . . . . . . Exploration | -11 -10 -10 -10 -9 -8 -7 -7 -7 -6 -6 -5 -4 ------------- Run | Yrd Mat Min Exi Min Mat Fac Low Dat Pro Fac Fac Fac Turns Passed 9440 | 72 852 760 438 471 1311 753 233 120 808 1860 1371 391 Spaces Moved 5969 | 40 397 387 231 200 754 555 190 101 867 1057 854 336 Core 610 | 4 . . . . . . . . 470 73 3 60 Treads . | . . . . . . . . . . . . . Legs 3526 | 36 397 387 231 200 754 555 190 101 397 161 117 . Wheels 489 | . . . . . . . . . . 489 . . Hover 746 | . . . . . . . . . . 334 317 95 Flight 598 | . . . . . . . . . . . 417 181 Fastest Speed 34 | 50 120 190 190 190 120 120 120 120 50 50 34 34 Average Speed 124 | 114 184 190 190 190 130 120 120 120 84 128 88 75 Slowest Speed 1050 | 120 260 190 190 190 190 120 120 120 330 1050 500 515 Overloaded Moves . | . . . . . . . . . . . . . Propulsion Burnouts . | . . . . . . . . . . . . . Robots Hopped 1 | . . . . . . . . . . . . 1 Potential Cave-ins . | . . . . . . . . . . . . . Cave-ins Triggered . | . . . . . . . . . . . . . Exploration Rate (%) 40 | 3 40 71 60 46 44 15 28 75 95 19 23 10 Regions Visited 12 Branch Regions 6 Pre-discovered Areas 4 | . . 1 1 1 . . . 1 . . . . Known Exits Taken 2 | . . . . . . . . . . 1 1 . Unknown Exits Taken 10 | 1 1 1 1 1 1 1 1 1 1 . . . Scrap Searched 9 | . . 1 . 2 . . 3 . 3 . . . Spaces Dug 23 | . . . . . 12 3 . . . 3 2 3 Terrain Destroyed 111 | . . . . . 12 3 . . 26 11 21 38 Melee 23 | . . . . . 12 3 . . . 3 2 3 Projectile 4 | . . . . . . . . . . . . 4 AOE 84 | . . . . . . . . . 26 8 19 31 Terrain Rammed . | . . . . . . . . . . . . . Walls Destroyed . | . . . . . . . . . . . . . Machines Disabled . | . . . . . . . . . . . . . Actions | -11 -10 -10 -10 -9 -8 -7 -7 -7 -6 -6 -5 -4 --------- Run | Yrd Mat Min Exi Min Mat Fac Low Dat Pro Fac Fac Fac Total 7551 | 55 462 401 231 291 1003 634 198 100 920 1451 1375 430 Wait 994 | . 12 4 . 89 146 42 . . 8 254 397 42 Move 5955 | 39 396 386 230 199 753 554 189 100 866 1056 853 334 Hop 1 | . . . . . . . . . . . . 1 Pick Up 69 | 5 8 . 1 1 12 13 2 . 3 14 8 2 Fast Attach 76 | 7 2 . . . 8 1 1 . 1 24 21 11 Attach 23 | . . . . . 4 2 . . 3 6 4 4 Detach 13 | . 2 . . . . 1 . . 1 3 2 4 Swap 29 | . 6 2 . . 9 2 1 . 3 5 1 . Drop 66 | . 6 2 . 1 20 7 5 . 5 9 8 3 Fire 239 | 4 29 6 . . 34 8 . . 30 51 56 21 Melee 61 | . . . . . 16 4 . . . 26 7 8 Ram 3 | . . . . . . . . . . 3 . . Kick 4 | . 1 1 . 1 1 . . . . . . . Crush . | . . . . . . . . . . . . . Escape Stasis 18 | . . . . . . . . . . . 18 . Rewire . | . . . . . . . . . . . . . Trap . | . . . . . . . . . . . . . Miscellaneous . | . . . . . . . . . . . . . Route ------- -11/Scrapyard -10/Materials (discovered 2 exits: [*Min] / [*Sub]) -10/Mines (discovered 2 exits: [*Mat] / *Exi) -10/Exiles -9/Mines -8/Materials -7/Factory -7/Lower Caves -7/Data Miner -6/Proximity Caves -6/Factory -5/Factory (discovered 4 exits: *Fac x4) -4/Factory History --------- Turn | Location | Event 7 | -11/Scrapyard | Discovered new exit (range 16) 73 | -11/Scrapyard | Entered Materials 311 | -10/Materials | Build established: Mutant 434 | -10/Materials | Discovered new exit (range 10) 487 | -10/Materials | Discovered new exit (range 16) 925 | -10/Materials | Entered Mines 1282 | -10/Mines | Build established: Scavenger-Mutant 1288 | -10/Mines | Discovered new exit (range 9) 1299 | -10/Mines | Assisted by bots powering up and referring to "LRC-V3" 1673 | -10/Mines | Deemed a non-threat by the Exiles lab entrance 1675 | -10/Mines | Discovered new exit (range 5) 1685 | -10/Mines | Entered Exiles 1685 | -10/Exiles | Accompanied by 3 allies 1729 | -10/Exiles | Met 8R-AWN 1761 | -10/Exiles | Met EX-HEX 1817 | -10/Exiles | Met EX-BIN 1839 | -10/Exiles | Aligned with FarCom system 1841 | -10/Exiles | Given EX-Vault access code 1908 | -10/Exiles | Opened EX-Vault 1936 | -10/Exiles | Found 0b10 Alert Chip 1977 | -10/Exiles | Warned to stay clear of 0b10 Research branches 2032 | -10/Exiles | Met EX-DEC 2046 | -10/Exiles | Learned location of Zion (-6) 2099 | -10/Exiles | Discovered new exit (range 14) 2123 | -10/Exiles | Left Exiles lab with 0b10 Alert Chip 2123 | -10/Exiles | Entered Mines 2123 | -9/Mines | Accompanied by 3 allies 2570 | -9/Mines | Learned location of Storage (-7) 2571 | -9/Mines | Discovered new exit (range 5) 2594 | -9/Mines | Entered Materials 2594 | -8/Materials | Accompanied by 5 allies 2594 | -8/Materials | Evolved 4 slots: Propulsion x2, Utility x2 2599 | -8/Materials | Led the pair of lost Derelicts to an unsafe place 3130 | -8/Materials | Discovered new exit (range 14) 3591 | -8/Materials | Build established: Mutant 3905 | -8/Materials | Entered Factory 3905 | -7/Factory | Evolved 2 slots: Propulsion x1, Utility x1 4315 | -7/Factory | Discovered new exit (range 4) 4658 | -7/Factory | Entered Lower Caves 4879 | -7/Lower Caves | A Derelict revealed a hidden shortcut to meet someone special 4891 | -7/Lower Caves | Entered Data Miner 4891 | -7/Data Miner | Discovered new exit (range 6) 4914 | -7/Data Miner | Met Data Miner 4945 | -7/Data Miner | Learned location of Section 7 (-2) 4945 | -7/Data Miner | Acquired the access code to Warlord's prototype stash 4967 | -7/Data Miner | Received God Mode back door access code from Data Miner 5011 | -7/Data Miner | Entered Proximity Caves 5427 | -6/Proximity Caves | Spotted B-75 Beast 5475 | -6/Proximity Caves | Learned Factory security intel 5562 | -6/Proximity Caves | Lost 10 parts (1p5n2u2w) 5580 | -6/Proximity Caves | Core integrity fell below 50% 5640 | -6/Proximity Caves | Escorted by Enhanced Grunt 5660 | -6/Proximity Caves | Attracted the attention of an 0b10 outpost 5704 | -6/Proximity Caves | Core integrity fell below 20% 5806 | -6/Proximity Caves | Discovered new exit (range 9) 5819 | -6/Proximity Caves | Entered Factory 5819 | -6/Factory | Evolved 2 slots: Power x1, Utility x1 6719 | -6/Factory | Lost 3 parts (1p1n1w) 7019 | -6/Factory | System corruption reached 10% 7098 | -6/Factory | Core integrity fell below 50% 7119 | -6/Factory | Lost 4 parts (1p1n2w) 7605 | -6/Factory | Discovered new exit (range 8) 7679 | -6/Factory | Identified exit to Factory 7679 | -6/Factory | Entered another Factory area 7679 | -5/Factory | Evolved 2 slots: Utility x2 8344 | -5/Factory | Build established: Hacker-Mutant 8495 | -5/Factory | System corruption reached 10% 8558 | -5/Factory | Lost 8 parts (1p4n2u1w) 8668 | -5/Factory | Lost 4 parts (1p1u2w) 8837 | -5/Factory | Identified exit to Factory 9038 | -5/Factory | Build established: Scavenger-Mutant 9040 | -5/Factory | Core integrity fell below 50% 9050 | -5/Factory | Entered another Factory area 9050 | -4/Factory | Evolved 2 slots: Utility x2 9304 | -4/Factory | Garrison activated, responded to threat 9391 | -4/Factory | Lost 10 parts (2p4n1u3w) 9399 | -4/Factory | Core integrity fell below 50% 9406 | -4/Factory | Core integrity fell below 20% 9436 | -4/Factory | Lost 4 parts (1n3u) 9441 | -4/Factory | Destroyed by S-27 Virus with Autogun Last Messages --------------- 09403_ Hacking Suite destroyed. 09403_ Critical hit (Blast). 09403_ U-05 Engineer lays Concrete. 09405_ U-05 Engineer destroyed. 09405_ K-01 Serf collects debris. 09405_ Imp. Hacking Suite destroyed. 09405_ U-05 Engineer lays Concrete. 09406_ U-05 Engineer builds a Wall. 09406_ U-05 Engineer lays Concrete. 09408_ K-01 Serf collects debris. 09412_ Door malfunctions. 09416_ Acquired 1 matter. 09418_ Penetrated by Slug. 09421_ Acquired 12 matter. 09423_ D0FJ :GK/SQ>ND2E,RSSF:EXF&OBK5 09428_ Acquired Power Sword. 09438_ ALERT: Security rotation in progress. 09438_ Neutrino Reactor explodes. 09438_ Door malfunctions. 09438_ Emergency Access malfunctions. Map ----- +----------------------------------------------------+ | ##?????????? # """" """" """????????""" """" " | | # #???????????+ """" """" %"""???????""" """" " | | # ##???????????# ?????? | | # #????????????# ???????? | | # #????????????# ????????? | | ###????????????# #??????????????# # | | ################ ###########+#??# # | | # #??# # | | # """""" #??# # | | % s " """""" #??# # | | # """""" #### # | | s # """""" + " | | ###########/########### # ######+#+# | | ????# ##??# # """""" # | | ????#" ###?# # """""" # | | ????#" #?#Y + """""" # | | ????#" #?# Y s# """""" # """ """ | | ????# ##?# ; # """ """ | | ????# # #??# # # """ """ | | ????# # ##### #s###/######### | | ????# # ##??????# """ """ | | ????# # #???????# """ """ | | ????# # #???????# """ """ | | ????# ### #???????# | | ????# #?# p #???????# | | ????##############?# @ #???????########## | | ???????????????????# #????????????????? | | ???????????????????# #????????????????? | | ???????????????????# #????????????????? | | ???????????????????# /// #????????????????? | | ???????????????????# // #????????????????? | | ???????????????????# #????????????????? | | ???????????????????########### ##????????????????? | | ?????????????????????????????###?????????????????? | | ?????????????????????????????????????????????????? | | ?????????????????????????????????????????????????? | | ?????????????????????????????????????????????????? | | ?????????????????????????????????????????????????? | | ?????????????????????????????????????????????????? | | ?????????????????????????????????????????????????? | | ?????????????????????????????????????????????????? | | ?????????????????????????????????????????????????? | | ?????????????????????????????????????????????????? | | ?????????????????????????????????????????????????? | | ?????????????????????????????????????????????????? | | ?????????????????????????????????????????????????? | | ?????????????????????????????????????????????????? | | ?????????????????????????????????????????????????? | | ?????????????????????????????????????????????????? | | ?????????????????????????????????????????????????? | +----------------------------------------------------+ Best States ------------- Heat Dissipation 71 Energy Generation 31 Energy Capacity 570 Matter Stores 400 Matter Capacity 550 Sight Range 16 Robot Scan Range 15 Terrain Scan Density 10 Additional Mass Support 9 Armor Coverage 300 Evasion (%) 63 Targeting Accuracy 16 Target Analysis 5 Energy Filtering 30 Offensive Hacking 22 Defensive Hacking 12 Item Schematics ----------------- Carbon-fiber Leg | -8/Materials | Scanalyzed Hrd. Medium Armor Plating | -8/Materials | Scanalyzed Mni. Grenade Launcher | -8/Materials | Scanalyzed Combat Drone Bay | -7/Data Miner | Free Lgt. Regenerative Plating | -7/Data Miner | Free Cld. Cesium-ion Thruster | -7/Data Miner | Free Exp. Propulsion Shielding | -7/Data Miner | Free Cld. Plasma Cannon | -7/Data Miner | Free Antigrav System | -7/Data Miner | Free Imp. Thermal Shield | -7/Data Miner | Free Imp. Plasma Cutter | -7/Data Miner | Free Imp. System Shield | -7/Data Miner | Free Imp. Powered Armor | -7/Data Miner | Free Imp. Coolant Injector | -7/Data Miner | Free HERF Cannon | -7/Data Miner | Free Impulse Thruster | -7/Data Miner | Free Nuclear Pulse Array | -5/Factory | Scanalyzed Imp. Hacking Suite | -5/Factory | Scanalyzed Robot Schematics ------------------ A-15 Conveyor | -7/Data Miner | Free S-27 Virus | -7/Data Miner | Free R-10 Processor | -7/Data Miner | Free B-48 Gladiator | -7/Data Miner | Free I-36 Angel | -7/Data Miner | Free Fabricated ------------ Nothing Repaired ---------- Nothing Alien Tech Used ----------------- None Achievements -------------- Batter Up Challenges ------------ None Game ------ Seed FireGravmagTendrils Manual? 0 Play Time 01:43:00 Cumulative 66.5 hours Start 2025.09.24 @ 17:54:10 End 2025.09.25 @ 05:58:37 Sessions 3 Manual Loads 0 Difficulty Rogue Special Mode None Game No. 73 Rogue 73 Adventurer 0 Explorer 0 Win Type - Total 0 Types 0/0/0/0/0/0/0/0/0/0 Lore% 20 Gallery% 32 Achievement% 28 Wizard Run 0 Options --------- Layout 1 ASCII 0 Keyboard 1 Movement Numpad Keybinds 0 Fullscreen 1 Font 32/SmallcapsGlow Map View 77x35 Zoom Use 0% Tactical HUD 1 Map Filters NONE Filters NONE Steam 1 RUN: abfb5aa3-b610-4594-989d-38524c031486